bitfinex/quotes_ETHUSD_20240811
["timestamp","ask_amount","ask_price","bid_price","bid_amount"]
[1723345200440,0.835,2629.5,2629.1,3.80349]
[1723345200760,22.39,2629.7,2629.1,3.80349]
[1723345200761,22.39,2629.7,2629.3,3.8032]
[1723345200932,3.0,2629.7,2629.3,3.8032]
[1723345201332,3.1908,2629.8,2629.3,7.60639]
[1723345201563,6.9934,2629.8,2629.3,3.80319]
[1723345201751,4.6376,2629.8,2629.3,3.80319]
[1723345201951,9.5558,2630.0,2629.3,4.401763]
[1723345201952,10.3908,2630.0,2629.3,4.401763]
[1723345202129,8.035,2630.0,2629.6,6.21485]
[1723345202337,0.835,2630.2,2629.6,2.4121]
[1723345203067,4.63701,2630.2,2629.7,3.80271]
[1723345203265,8.43908,2630.2,2629.7,3.80271]
[1723345203480,4.63701,2630.2,2629.7,3.80271]
[1723345203763,4.63701,2630.2,2629.6,6.21494]
[1723345204067,0.835,2630.0,2629.6,6.21494]
[1723345205167,0.835,2630.0,2629.7,3.8027]
[1723345205467,0.835,2630.0,2629.6,6.21494]
[1723345205468,0.835,2630.0,2629.6,6.21488]
[1723345206463,0.835,2630.0,2629.6,7.22426818]
[1723345206860,0.835,2630.0,2629.6,11.02700818]
[1723345207970,0.835,2630.0,2629.7,3.8027]
[1723345208973,0.835,2630.0,2629.6,7.22423818]
[1723345210357,0.835,2630.0,2629.6,6.21484]
[1723345211035,4.63729,2630.0,2629.6,2.4121]
[1723345211242,4.63729,2630.0,2629.4,7.60612]
[1723345211243,0.835,2629.8,2629.4,2.4121]
[1723345211571,4.63771,2629.8,2629.2,6.21543]
[1723345211776,4.63771,2629.8,2629.2,6.920473]
[1723345211939,4.63771,2629.8,2629.2,10.723823]
[1723345212135,0.835,2629.8,2629.3,3.80328]
[1723345212535,0.835,2629.8,2629.2,6.920473]
[1723345212536,0.835,2629.8,2629.4,3.80314]
[1723345213036,0.835,2629.8,2629.4,3.80307]
[1723345213473,8.035,2630.0,2629.5,3.803]
[1723345213667,8.035,2630.0,2629.5,6.2151]
[1723345214085,8.035,2630.0,2629.6,3.80285]
[1723345215349,8.035,2630.0,2629.6,3.80277]
[1723345215547,7.2,2630.0,2629.7,3.80271]
[1723345216874,7.2,2630.0,2629.6,4.53909792]
[1723345217078,7.2,2630.0,2629.6,3.8788192]
[1723345217766,0.06271967,2629.9,2629.6,3.8788092]
[1723345218777,0.06275398,2629.8,2629.6,3.80276]
[1723345218954,0.06275398,2629.8,2629.6,3.87880926]
[1723345219165,8.43916,2630.2,2629.6,4.97170519]
[1723345219379,0.0627521,2629.7,2629.6,3.87880926]
[1723345219561,8.43916,2630.2,2629.6,3.87880926]
[1723345219752,0.0627521,2629.7,2629.6,3.87880926]
[1723345219953,8.43916,2630.2,2629.6,3.87880926]
[1723345220172,0.0627521,2629.7,2629.6,3.87880926]
[1723345220378,3.80215,2630.1,2629.6,3.87880926]
[1723345220588,0.0627521,2629.7,2629.6,3.87880926]
[1723345220880,0.0627521,2629.7,2629.5,2.4121]
[1723345221182,2.4576,2629.9,2629.4,7.60611]
[1723345221385,0.06273817,2629.6,2629.4,7.60611]
[1723345221580,2.4576,2629.9,2629.4,8.696011]
[1723345221795,2.4576,2629.9,2629.4,4.892951]
[1723345221796,0.06273629,2629.5,2629.4,4.892951]
[1723345221964,0.835,2629.6,2629.0,3.80362]
[1723345222283,0.835,2629.6,2628.8,0.835]
[1723345222284,0.0627314,2629.5,2629.2,3.80335]
[1723345223153,0.0627314,2629.5,2629.1,2.4579]
[1723345223366,0.0627314,2629.5,2629.0,3.80361]
[1723345223367,0.0627314,2629.5,2629.0,7.60726]
[1723345223667,0.0627314,2629.5,2629.0,8.451486]
[1723345224471,0.0627314,2629.5,2629.1,3.80357]
[1723345225265,0.0627314,2629.5,2629.2,3.80343]
[1723345225851,0.0627314,2629.5,2629.0,8.451466]
[1723345226269,0.0627314,2629.5,2629.0,8.451456]
[1723345226952,0.0627314,2629.5,2629.1,3.80357]
[1723345227157,0.0627314,2629.5,2629.0,8.451456]
[1723345228091,0.0627314,2629.5,2629.0,4.647816]
[1723345228289,0.0627314,2629.5,2629.1,3.80357]
[1723345230307,0.0627314,2629.5,2629.2,3.80342]
[1723345230457,0.0627314,2629.5,2629.2,6.26132]
[1723345230658,0.0627314,2629.5,2629.2,6.26125]
[1723345230876,7.09517,2629.8,2629.2,6.26125]
[1723345231098,7.2,2629.9,2629.3,0.07606068]
[1723345231271,0.06033093,2629.8,2629.5,6.2608]
[1723345231586,0.06033093,2629.8,2629.5,2.4579]
[1723345231787,0.06033093,2629.8,2629.5,2.53394979]
[1723345232093,0.06033093,2629.8,2629.5,3.16764777]
[1723345233182,0.06033093,2629.8,2629.6,3.80282]
[1723345233383,0.06033093,2629.8,2629.6,3.87886797]
[1723345233688,0.06033093,2629.8,2629.6,3.87877797]
[1723345234080,0.06033093,2629.8,2629.6,3.80273]
[1723345236192,4.63722,2630.1,2629.6,3.80273]
[1723345236394,0.06047004,2629.7,2629.6,3.80273]
[1723345236572,4.63722,2630.1,2629.6,3.80273]
[1723345236768,0.06047004,2629.7,2629.6,7.60547]
[1723345236997,0.835,2630.1,2629.7,3.80264]
[1723345237294,0.835,2630.1,2629.8,3.80248]
[1723345238522,3.2926,2630.3,2629.9,3.80242]
[1723345238816,3.2926,2630.3,2629.6,6.26066]
[1723345239015,3.2926,2630.3,2629.8,3.80256]
[1723345240286,3.2926,2630.3,2629.8,3.80249]
[1723345240794,3.2926,2630.3,2629.8,3.80248]
[1723345244392,3.2926,2630.3,2629.8,7.60497]
[1723345244592,3.2926,2630.3,2629.8,3.80248]
[1723345245497,5.3843,2630.5,2630.1,3.80203]
[1723345245719,10.4193,2630.7,2630.2,3.80197]
[1723345246016,3.0,2630.6,2630.2,3.80197]
[1723345248092,3.0,2630.6,2630.0,6.29497]
[1723345248093,6.80143,2630.6,2630.0,10.09714]
[1723345248267,0.0607847,2630.5,2630.0,10.09714]
[1723345250190,0.0607847,2630.5,2630.1,3.80213]
[1723345255701,0.0607847,2630.5,2630.1,3.87816561]
[1723345258193,0.0607847,2630.5,2630.1,0.07603561]
[1723345258380,0.8957847,2630.5,2630.1,0.07603561]
[1723345259307,0.8957847,2630.5,2630.1,3.87813561]
[1723345261023,0.8957847,2630.5,2630.1,3.8021]
[1723345261710,0.8957847,2630.5,2630.1,3.878134]
[1723345263205,0.0607847,2630.5,2630.1,4.76364342]
[1723345263516,8.035,2630.7,2630.2,3.8019]
[1723345264007,0.06025557,2630.6,2630.2,3.8019]
[1723345264205,0.06025557,2630.6,2630.3,3.80182]
[1723345264608,0.06025557,2630.6,2630.1,4.68760942]
[1723345264796,0.06025557,2630.6,2630.1,8.56569337]
[1723345265917,0.06025557,2630.6,2630.1,8.56568337]
[1723345266092,0.06025557,2630.6,2630.1,4.76363337]
[1723345266613,0.06025557,2630.6,2630.1,3.87808395]
[1723345267003,0.06025557,2630.6,2630.1,7.68013395]
[1723345267178,0.06025557,2630.6,2630.1,3.87808395]
[1723345268082,2.34785557,2630.6,2630.1,3.87808395]
[1723345275608,6.14934557,2630.6,2630.1,3.87808395]
[1723345275827,6.14934557,2630.6,2630.1,3.80205]
[1723345276492,6.14934557,2630.6,2630.1,3.8780841]
[1723345278640,2.34785557,2630.6,2630.2,3.80197]
[1723345278806,0.06025557,2630.6,2630.2,3.87800409]
[1723345279209,0.06025557,2630.6,2630.3,3.80176]
[1723345279409,0.06025557,2630.6,2630.3,6.22906]
[1723345282035,0.06025557,2630.6,2630.3,10.03081]
[1723345282241,0.06025557,2630.6,2630.3,6.22903]
[1723345282531,0.06025557,2630.6,2630.4,3.8017]
[1723345284528,0.06025557,2630.6,2630.5,7.6031]
[1723345284831,7.2,2631.0,2630.7,3.80123]
[1723345285906,7.19429741,2631.0,2630.7,3.80123]
[1723345289407,0.835,2631.1,2630.7,3.80123]
[1723345292640,0.835,2631.1,2630.7,3.79989953]
[1723345293240,0.0519373,2631.0,2630.7,3.79989953]
[1723345293439,0.0519373,2631.0,2630.7,4.81036833]
[1723345293633,0.0519373,2631.0,2630.8,3.80112]
[1723345293943,0.0519373,2631.0,2630.9,3.80098]
[1723345294121,0.835,2631.3,2630.9,3.80098]
[1723345294318,0.05216291,2631.0,2630.9,3.80098]
[1723345294520,0.835,2631.3,2630.9,4.91257536]
[1723345295043,0.05216562,2631.2,2630.9,4.91257536]
[1723345295547,0.835,2631.3,2630.7,6.22849]
[1723345295548,0.835,2631.3,2630.7,6.22848]
[1723345295711,0.05216414,2631.1,2630.7,6.22848]
[1723345295912,3.85301949,2631.2,2630.7,6.22848]
[1723345296113,0.05239613,2631.0,2630.7,6.22848]
[1723345296339,0.05234118,2631.1,2630.7,6.22848]
[1723345296540,0.05233782,2630.9,2630.7,2.4273]
[1723345296742,4.6357,2631.1,2630.6,3.80138]
[1723345296948,0.05233594,2630.8,2630.6,3.80138]
[1723345297116,0.835,2631.1,2630.7,3.80124]
[1723345297548,0.835,2631.1,2630.6,3.80133]
[1723345298344,0.835,2631.1,2630.6,7.60266]
[1723345298716,0.835,2631.1,2630.6,3.80133]
[1723345298941,0.835,2631.1,2630.7,3.80126]
[1723345299648,0.835,2631.1,2630.6,3.80133]
[1723345299943,0.835,2631.1,2630.6,4.80357838]
[1723345300149,0.835,2631.1,2630.6,8.60490838]
[1723345300522,0.835,2631.1,2630.7,3.80125]
[1723345305521,10.99464741,2631.4,2630.9,3.80097]
[1723345305522,0.835,2631.3,2630.9,3.80097]
[1723345308152,0.05238335,2631.2,2630.9,3.80097]
[1723345308540,0.05238148,2631.1,2630.9,3.80097]
[1723345308856,0.835,2631.3,2630.9,3.80097]
[1723345309533,0.05238335,2631.2,2631.0,3.80075]
[1723345309846,7.19429741,2631.4,2631.1,3.80069]
[1723345310246,0.835,2631.5,2631.1,3.80069]
[1723345312048,0.835,2631.5,2630.9,8.60312393]
[1723345312247,0.835,2631.5,2631.0,3.80082]
[1723345313777,0.835,2631.5,2631.1,3.80065]
[1723345318864,0.835,2631.5,2630.9,8.60299393]
[1723345319180,4.63515,2631.5,2631.0,3.80083]
[1723345320770,0.835,2631.5,2631.0,3.80083]
[1723345323198,0.05068068,2631.4,2631.0,3.80083]
[1723345330921,0.05068068,2631.4,2631.1,3.80067]
[1723345334010,0.05068068,2631.4,2631.1,10.06577]
[1723345334624,0.05068068,2631.4,2631.1,6.2651]
[1723345334926,0.05068068,2631.4,2631.1,3.8006]
[1723345341446,0.05068068,2631.4,2631.0,3.8768279]
[1723345341622,0.05068068,2631.4,2631.0,3.80082]
[1723345341818,0.05068068,2631.4,2630.9,10.06625]
[1723345342219,0.05068068,2631.4,2631.0,3.80082]
[1723345346928,0.05068068,2631.4,2630.9,10.06623]
[1723345347328,0.05068068,2631.4,2631.0,0.07600793]
[1723345348418,0.05068068,2631.4,2631.0,3.87683793]
[1723345354055,0.05068068,2631.4,2631.0,3.80083]
[1723345354925,2.4425,2631.3,2631.0,3.80083]
[1723345355326,0.0506729,2631.2,2631.0,3.80083]
[1723345355729,2.4425,2631.3,2631.0,3.80083]
[1723345355927,0.05067102,2631.1,2630.8,3.80101]
[1723345356128,2.4425,2631.3,2630.8,3.80101]
[1723345356329,0.05066915,2631.0,2630.8,3.80101]
[1723345356562,2.4425,2631.3,2630.8,3.80101]
[1723345356762,0.05066728,2630.9,2630.8,3.80101]
[1723345357054,2.4425,2631.3,2630.9,3.80096]
[1723345368346,0.05060153,2631.2,2630.9,3.80096]
[1723345368672,2.4425,2631.3,2630.9,3.80096]
[1723345368868,0.05059966,2631.1,2630.9,3.80096]
[1723345369162,2.4425,2631.3,2630.9,3.80096]
[1723345369336,0.05059779,2631.0,2630.9,3.80096]
[1723345369536,2.4425,2631.3,2630.9,3.80096]
[1723345369771,0.05059779,2631.0,2630.9,3.80096]
[1723345369975,2.4425,2631.3,2630.9,3.80096]
[1723345370479,0.0505854,2631.2,2630.9,3.80096]
[1723345370851,2.4425,2631.3,2630.9,3.80096]
[1723345371052,0.0505854,2631.2,2630.9,3.80096]
[1723345371353,2.4425,2631.3,2630.9,3.80096]
[1723345371553,0.05058353,2631.1,2630.9,3.80096]
[1723345371782,2.4425,2631.3,2630.9,3.80096]
[1723345372250,0.0505854,2631.2,2630.9,3.80096]
[1723345372450,2.4425,2631.3,2630.9,3.80096]
[1723345372660,0.0505854,2631.2,2630.9,3.80096]
[1723345372846,2.4425,2631.3,2630.9,3.80096]
[1723345373050,0.05057331,2631.2,2630.9,3.80096]
[1723345373276,2.4425,2631.3,2630.9,3.80096]
[1723345373478,0.05057144,2631.1,2630.9,3.80096]
[1723345373662,2.4425,2631.3,2630.9,3.80096]
[1723345373863,0.05057331,2631.2,2630.9,3.80096]
[1723345374054,2.4425,2631.3,2630.9,3.80096]
[1723345374255,0.05057331,2631.2,2630.9,3.80096]
[1723345374452,2.4425,2631.3,2630.9,3.80096]
[1723345374652,0.05055314,2631.2,2630.9,3.80096]
[1723345374853,2.4425,2631.3,2630.9,3.80096]
[1723345375167,0.05055314,2631.2,2630.9,3.80096]
[1723345375564,2.4425,2631.3,2630.9,3.80096]
[1723345375778,0.05055127,2631.1,2630.9,3.80096]
[1723345375952,2.4425,2631.3,2630.9,3.80096]
[1723345376153,0.0505494,2631.0,2630.9,3.80096]
[1723345376381,2.4425,2631.3,2630.9,3.80096]
[1723345376570,0.0505494,2631.0,2630.9,3.80096]
[1723345376770,2.4425,2631.3,2630.9,3.80096]
[1723345376972,0.0505494,2631.0,2630.7,3.80119]
[1723345377177,6.24302,2631.3,2630.7,3.80119]
[1723345377371,0.05054752,2630.9,2630.7,3.80119]
[1723345377555,6.24302,2631.3,2630.7,3.80119]
[1723345377755,0.05054565,2630.8,2630.7,3.80119]
[1723345377979,6.24302,2631.3,2630.8,7.60213]
[1723345378700,6.24302,2631.3,2630.8,3.80104]
[1723345380188,6.24298,2631.3,2630.8,3.80104]
[1723345381590,6.24298,2631.3,2630.8,3.87704857]
[1723345383292,0.835,2631.4,2630.8,3.87704857]
[1723345383293,0.05056524,2631.2,2630.8,3.87704857]
[1723345383490,0.05056524,2631.2,2630.9,2.94509694]
[1723345383661,4.63534,2631.4,2630.9,2.51560865]
[1723345383866,0.05056308,2631.3,2630.9,2.51560865]
[1723345384088,0.05056308,2631.3,2630.9,0.07600865]
[1723345388413,3.85098308,2631.3,2630.9,0.07600865]
[1723345393422,3.85098308,2631.3,2630.8,3.80103]
[1723345396518,3.85098308,2631.3,2630.2,11.00315002]
[1723345396519,3.80129,2630.7,2630.2,3.65315002]
[1723345396725,2.3046,2630.8,2630.1,2.2734]
[1723345397022,3.80134,2630.7,2630.2,3.80191]
[1723345397318,0.05018152,2630.7,2630.3,3.80183]
[1723345397486,6.94073,2630.8,2630.3,3.80183]
[1723345397689,2.3046,2630.8,2630.6,3.80139]
[1723345398002,0.835,2631.0,2630.4,3.80166]
[1723345398003,3.2976,2631.0,2630.5,0.07602303]
[1723345398204,0.05003603,2630.7,2630.5,3.87756303]
[1723345398605,2.4626,2631.0,2630.5,3.87756303]
[1723345399116,0.04989319,2630.9,2630.5,3.87756303]
[1723345400422,0.04989319,2630.9,2630.4,9.99062]
[1723345400625,0.04989319,2630.9,2630.5,3.80152]
[1723345402835,0.04989319,2630.9,2630.6,0.07602054]
[1723345403507,0.04989319,2630.9,2630.5,3.80152]
[1723345403813,0.04989319,2630.9,2630.5,3.87754055]
[1723345405528,0.04989319,2630.9,2630.5,3.87746055]
[1723345405895,0.04039128,2630.9,2630.5,3.87746055]
[1723345406440,0.04039128,2630.9,2630.5,7.67892055]
[1723345406599,0.04039128,2630.9,2630.5,3.87746055]
[1723345406801,0.04039128,2630.9,2630.5,3.80144]
[1723345407697,0.835,2630.8,2630.3,3.80175]
[1723345407902,0.04963042,2630.7,2630.4,3.80168]
[1723345408298,0.835,2630.8,2630.4,3.80168]
[1723345408497,0.04968366,2630.7,2630.2,6.18925]
[1723345408743,0.04968366,2630.7,2630.3,3.8017]
[1723345408914,0.835,2630.8,2630.3,3.8017]
[1723345409119,0.04968178,2630.6,2630.3,3.8017]
[1723345409431,0.835,2630.8,2630.3,3.8017]
[1723345409624,0.04967991,2630.5,2630.3,3.8017]
[1723345409831,0.835,2630.8,2630.3,4.50391208]
[1723345410124,0.835,2630.8,2630.3,3.8017]
[1723345410330,0.04968137,2630.7,2630.3,3.8017]
[1723345410624,0.835,2630.8,2630.3,3.8017]
[1723345410832,0.0496795,2630.6,2630.3,3.8017]
[1723345411133,0.04967763,2630.5,2630.4,3.80169]
[1723345411502,0.835,2630.8,2630.4,3.80169]
[1723345411829,0.04968137,2630.7,2630.4,3.80169]
[1723345412133,0.835,2630.8,2630.4,3.80169]
[1723345412331,0.0496795,2630.6,2630.4,3.80169]
[1723345412532,0.835,2630.8,2630.2,6.18925]
[1723345412733,0.0496805,2630.5,2630.3,3.80176]
[1723345412932,3.8013,2630.7,2630.2,3.80185]
[1723345413141,0.04967862,2630.4,2630.2,3.80185]
[1723345413302,2.4626,2630.6,2630.2,3.80185]
[1723345413502,0.04963614,2630.5,2630.2,3.80185]
[1723345414207,0.04963614,2630.5,2630.2,7.60376]
[1723345414743,0.04963614,2630.5,2630.3,3.80173]
[1723345415305,0.04963614,2630.5,2630.4,3.8017]
[1723345415801,0.04963614,2630.5,2630.2,7.6037]
[1723345416004,0.04963614,2630.5,2630.3,3.80183]
[1723345418938,0.04963614,2630.5,2630.4,3.8017]
[1723345419640,0.04963614,2630.5,2630.2,8.68633]
[1723345419852,0.04963614,2630.5,2630.3,3.80182]
[1723345422508,0.04963614,2630.5,2630.4,3.8017]
[1723345422709,2.3204,2630.8,2630.4,3.8017]
[1723345422915,0.04954653,2630.7,2630.4,3.8017]
[1723345423439,2.3204,2630.8,2630.4,3.8017]
[1723345423645,0.04955272,2630.6,2630.4,3.8017]
[1723345423946,0.04955085,2630.5,2630.4,3.8017]
[1723345424158,2.3204,2630.8,2630.2,1.91761]
[1723345424309,0.04955085,2630.5,2630.3,4.373785]
[1723345424510,2.3204,2630.8,2630.3,3.80182]
[1723345424736,0.0495546,2630.7,2630.3,3.80182]
[1723345424935,2.3204,2630.8,2630.3,3.80182]
[1723345425135,0.04955272,2630.6,2630.3,3.80182]
[1723345425336,2.3204,2630.8,2630.3,3.80182]
[1723345425538,0.04955085,2630.5,2630.3,3.80182]
[1723345425744,2.3204,2630.8,2630.3,4.562206]
[1723345425915,0.04954898,2630.4,2630.3,3.80182]
[1723345426131,2.3204,2630.8,2630.3,3.80182]
[1723345426317,0.04954898,2630.4,2630.3,3.80182]
[1723345426647,2.3204,2630.8,2630.3,3.80182]
[1723345426851,0.04954898,2630.4,2630.3,3.80182]
[1723345427051,2.3204,2630.8,2630.3,4.562206]
[1723345427240,0.04954898,2630.4,2630.3,3.80182]
[1723345427444,2.3204,2630.8,2630.3,3.80182]
[1723345427652,0.04954898,2630.4,2630.3,3.80182]
[1723345427832,6.12153,2630.8,2630.3,3.80182]
[1723345428026,0.04954898,2630.4,2630.3,3.80182]
[1723345428232,6.12153,2630.8,2630.3,3.80182]
[1723345428433,0.04954898,2630.4,2630.3,3.80182]
[1723345428651,6.12153,2630.8,2630.3,4.562206]
[1723345428953,0.0495546,2630.7,2630.3,3.80182]
[1723345429150,2.3204,2630.8,2630.3,3.80182]
[1723345429347,0.04955272,2630.6,2630.4,3.80166]
[1723345429549,2.3204,2631.0,2630.5,3.87757684]
[1723345429716,2.3204,2631.0,2630.7,3.80125]
[1723345433454,9.12096,2631.2,2630.7,7.60244]
[1723345433654,9.12096,2631.2,2630.7,3.80119]
[1723345436572,5.3204,2631.2,2630.7,3.80119]
[1723345436772,5.3204,2631.2,2630.5,0.07601837]
[1723345436773,2.3204,2631.2,2630.8,3.80111]
[1723345441800,25.69875,2631.6,2631.0,3.80073]
[1723345442083,25.69875,2631.6,2631.0,9.88756]
[1723345442084,0.835,2631.5,2631.0,9.88756]
[1723345442289,25.69875,2631.6,2631.1,3.80067]
[1723345442443,0.835,2631.5,2631.2,3.80054]
[1723345443138,0.049775,2631.4,2631.2,3.80054]
[1723345443840,0.049775,2631.4,2631.3,9.96290922]
[1723345444039,0.835,2631.8,2631.4,3.80012]
[1723345444565,0.835,2631.8,2631.3,9.88682]
[1723345444775,0.835,2631.8,2631.3,6.08642]
[1723345444776,4.63472,2631.8,2631.3,6.08642]
[1723345445086,0.835,2631.8,2631.4,3.80025]
[1723345448051,17.30758,2632.0,2631.4,3.80025]
[1723345448261,0.835,2631.8,2631.4,3.80025]
[1723345448551,0.835,2631.8,2631.4,4.788917]
[1723345451094,0.835,2631.9,2631.4,4.788917]
[1723345453417,0.835,2631.9,2631.5,3.80009]
[1723345454014,8.135,2632.0,2631.7,6.08592]
[1723345454200,8.135,2632.0,2631.8,0.608592]
[1723345454712,0.835,2632.0,2631.8,0.608592]
[1723345455520,11.09888,2632.4,2632.0,6.0854]
[1723345455521,7.3,2632.4,2632.0,6.0854]
[1723345455814,3.2437,2632.5,2632.0,6.0854]
[1723345456210,7.04237,2632.5,2632.0,6.0854]
[1723345456570,0.835,2632.3,2632.0,6.0854]
[1723345456772,0.835,2632.3,2632.0,6.73405289]
[1723345456965,7.3,2632.7,2632.2,3.799]
[1723345457166,8.135,2632.7,2632.2,3.799]
[1723345457785,8.135,2632.7,2632.3,2.4208]
[1723345458109,8.135,2632.7,2632.4,4.800679]
[1723345458315,0.0491305,2632.6,2632.4,4.800679]
[1723345459301,0.0491305,2632.6,2632.5,10.01814]
[1723345459814,7.3,2633.5,2633.0,6.21872]
[1723345460142,0.835,2633.4,2633.0,6.21872]
[1723345461044,3.79717,2633.6,2633.0,6.21872]
[1723345461252,11.09685,2633.8,2633.1,0.69782268]
[1723345461536,0.835,2633.7,2633.3,3.79748]
[1723345461732,0.835,2633.7,2633.3,3.87342207]
[1723345461936,0.835,2633.7,2633.4,3.79735]
[1723345462290,3.79628,2634.2,2633.6,2.4208]
[1723345462519,0.835,2634.0,2633.6,2.4208]
[1723345462787,0.835,2634.0,2633.6,6.21778]
[1723345463130,0.835,2634.0,2633.6,10.01475]
[1723345463433,0.835,2634.0,2633.6,6.21777]
[1723345464540,0.835,2633.8,2633.3,2.4208]
[1723345464845,0.835,2633.8,2633.5,3.79722]
[1723345465410,0.835,2633.8,2633.4,3.79728]
[1723345465594,0.835,2633.8,2633.3,6.21829]
[1723345465819,3.7964,2634.1,2633.5,3.7972]
[1723345466049,0.835,2633.9,2633.6,3.87292214]
[1723345466824,0.835,2634.0,2633.7,2.4208]
[1723345467202,0.835,2634.0,2633.4,3.79725]
[1723345467543,0.835,2634.0,2633.6,3.79706]
[1723345468931,0.835,2634.0,2633.6,7.59405]
[1723345469126,0.835,2634.0,2633.7,2.4208]
[1723345469918,0.835,2634.0,2633.7,6.21772]
[1723345471407,0.835,2634.0,2633.7,10.01457]
[1723345471531,0.835,2634.0,2633.7,1.001457]
[1723345472551,0.835,2634.0,2633.7,4.798367]
[1723345473241,0.04721488,2633.9,2633.7,4.798367]
[1723345473826,0.04721488,2633.9,2633.7,4.798307]
[1723345474243,0.835,2634.2,2633.7,4.798307]
[1723345474444,0.835,2634.2,2633.8,0.7219107]
[1723345475147,4.6313,2634.2,2633.8,0.7219107]
[1723345477556,0.835,2634.2,2633.8,0.7219107]
[1723345478858,4.63122,2634.2,2633.8,0.7219107]
[1723345479671,0.015,2634.7,2634.2,2.3535]
[1723345479841,0.015,2634.7,2634.4,2.3535]
[1723345480032,0.015,2634.7,2634.6,3.79564]
[1723345480239,0.03795312,2634.6,2634.5,7.59147]
[1723345480439,0.015,2634.7,2634.6,3.79564]
[1723345480639,0.015,2634.7,2634.5,3.79567]
[1723345480860,0.05295499,2634.7,2634.6,8.28210018]
[1723345481063,0.015,2634.7,2634.6,4.48646018]
[1723345481574,0.015,2634.7,2634.6,4.47146018]
[1723345481768,0.05329382,2634.7,2634.6,4.47146018]
[1723345486094,0.015,2634.7,2634.6,4.47146018]
[1723345488682,3.79486,2635.2,2634.6,4.47146018]
[1723345489166,0.03830447,2635.1,2634.7,3.79545]
[1723345489367,0.03830447,2635.1,2634.7,3.87135213]
[1723345490377,0.03830447,2635.1,2634.7,7.66671213]
[1723345490581,3.79466,2635.3,2634.7,4.69796504]
[1723345490789,0.03830633,2635.2,2634.7,4.69796504]
[1723345490999,3.83308633,2635.2,2634.7,4.69796504]
[1723345491557,3.83308633,2635.2,2634.7,8.49337504]
[1723345491762,3.83308633,2635.2,2634.7,4.69796504]
[1723345491980,3.83309633,2635.2,2634.7,4.69796504]
[1723345492263,0.03830633,2635.2,2634.7,4.69796504]
[1723345492565,0.03830447,2635.1,2634.7,0.07590213]
[1723345492761,3.79463,2635.3,2634.7,2.3535]
[1723345493092,0.03870163,2635.2,2634.7,2.42940217]
[1723345494379,0.03870163,2635.2,2634.8,3.79526]
[1723345494624,3.79463,2635.3,2634.8,3.79526]
[1723345494829,0.03870247,2635.1,2634.8,3.79526]
[1723345495117,3.79463,2635.3,2634.8,3.79526]
[1723345495324,0.0387006,2635.0,2634.8,3.79524]
[1723345495481,3.79452,2635.4,2634.8,3.79524]
[1723345495681,0.03869873,2634.9,2634.8,3.79524]
[1723345495892,3.79464,2635.3,2634.8,3.79524]
[1723345496093,0.03869873,2634.9,2634.8,3.79524]
[1723345496288,3.79464,2635.3,2634.8,3.79524]
[1723345496508,0.03879953,2634.9,2634.8,3.79524]
[1723345496715,3.79464,2635.3,2634.8,3.79524]
[1723345496927,0.03879953,2634.9,2634.8,3.79524]
[1723345497092,0.03879953,2634.9,2634.8,4.79725716]
[1723345497296,3.79465,2635.3,2634.8,4.79725716]
[1723345497505,0.03879953,2634.9,2634.8,3.79524]
[1723345497731,3.79465,2635.3,2634.7,6.1489]
[1723345497912,0.03878474,2634.9,2634.7,6.1489]
[1723345498115,3.79465,2635.3,2634.7,8.20568]
[1723345498312,0.03878638,2634.8,2634.7,3.79539]
[1723345498513,3.79465,2635.3,2634.7,3.79539]
[1723345498718,0.03878638,2634.8,2634.7,3.79539]
[1723345498915,3.79465,2635.3,2634.7,8.5935]
[1723345499127,0.03878638,2634.8,2634.7,7.5908]
[1723345499422,0.03878638,2634.8,2634.7,3.79539]
[1723345499589,3.79465,2635.3,2634.7,7.59076]
[1723345499789,3.79465,2635.3,2634.7,3.79537]
[1723345500136,0.03879385,2635.2,2634.7,3.79537]
[1723345500933,9.8458533,2635.5,2635.0,3.79497]
[1723345501146,0.03879198,2635.1,2635.0,2.50985285]
[1723345501299,3.9220033,2635.5,2635.0,6.30484285]
[1723345501812,0.03880161,2635.4,2635.1,7.58969]
[1723345502135,0.03880161,2635.4,2635.1,3.79479]
[1723345502424,0.03880161,2635.4,2635.0,6.23088]
[1723345502723,0.03880161,2635.4,2635.0,6.30677195]
[1723345503214,0.03880161,2635.4,2635.1,3.79491]
[1723345507505,0.03880161,2635.4,2635.3,7.58926]
[1723345507739,0.03880161,2635.4,2635.3,10.02516]
[1723345508436,0.1276533,2635.5,2635.3,10.02516]
[1723345508437,0.1276533,2635.5,2635.4,3.79449]
[1723345509661,0.1276533,2635.5,2635.4,3.87037152]
[1723345510269,0.1276533,2635.5,2635.3,6.23053]
[1723345510270,0.1276533,2635.5,2635.3,3.79463]
[1723345510458,0.1276533,2635.5,2635.4,4.500643]
[1723345511063,0.1276533,2635.5,2635.4,0.706153]
[1723345511466,0.1276533,2635.5,2634.9,3.79508]
[1723345511467,3.9221233,2635.5,2634.9,3.79508]
[1723345511654,0.1276533,2635.5,2635.0,3.79503]
[1723345512336,0.1276533,2635.5,2635.3,2.4359]
[1723345512534,0.1276533,2635.5,2635.3,2.51178163]
[1723345512737,0.1276533,2635.5,2635.4,0.71374616]
[1723345513355,0.1276533,2635.5,2635.4,4.50823616]
[1723345513571,0.1276533,2635.5,2635.4,3.79449]
[1723345513770,0.1276533,2635.5,2635.4,7.58898]
[1723345513972,0.1276533,2635.5,2635.4,10.10076163]
[1723345515148,0.1276533,2635.5,2635.4,10.02488]
[1723345516553,0.1276533,2635.5,2635.4,13.81937]
[1723345516889,0.1276533,2635.5,2635.4,19.745097]
[1723345517256,3.3e-06,2635.5,2635.4,20.38369675]
[1723345517458,3.3e-06,2635.5,2635.4,23.38369675]
[1723345520761,3.7902,2638.4,2637.6,3.79132]